fUSD/lending_fUSD_20240802
["ID","MTS","AMOUNT","RATE_DAILY","PERIOD"]
[333888019,1722599446194,-500.0,0.00019178,2]
[333888020,1722599446204,-500.0,0.00019178,2]
[333888021,1722599446214,-500.0,0.00019178,2]
[333888022,1722599446223,-724.82,0.00019178,2]
[333888023,1722599446234,-2424.5,0.00019178,2]
[333888024,1722599446244,-551.71,0.00019178,2]
[333888025,1722599446253,-1209.58,0.00019178,2]
[333888026,1722599446263,-151.0,0.00019178,2]
[333888027,1722599446272,-233.838259,0.00019178,2]
[333888028,1722599446282,-500.0,0.00019178,2]
[333888029,1722599446291,-2581.18,0.00019178,2]
[333888030,1722599446301,-500.0,0.00019178,2]
[333888031,1722599446311,-500.0,0.00019178,2]
[333888032,1722599446321,-555.07,0.00019178,2]
[333888033,1722599446332,-592.1,0.00019178,2]
[333888034,1722599446342,-500.0,0.00019178,2]
[333888035,1722599446354,-707.28,0.00019178,2]
[333888036,1722599446363,-151.0,0.00019178,2]
[333888037,1722599446373,-500.0,0.00019178,2]
[333888038,1722599446383,-500.0,0.00019178,2]
[333888039,1722599446392,-1322.67,0.00019178,2]
[333888040,1722599446402,-500.0,0.00019178,2]
[333888041,1722599446411,-2314.46,0.00019178,2]
[333888042,1722599446420,-2058.72,0.00019178,2]
[333888043,1722599446429,-500.0,0.00019178,2]
[333888044,1722599446440,-500.0,0.00019178,2]
[333888045,1722599446450,-466.34655551,0.00019178,2]
[333888046,1722599446460,-1041.36,0.00019178,2]
[333888047,1722599446469,-500.0,0.00019178,2]
[333888048,1722599446480,-500.0,0.00019178,2]
[333888049,1722599446492,-500.0,0.00019178,2]
[333888050,1722599446502,-500.0,0.00019178,2]
[333888051,1722599446511,-500.0,0.00019178,2]
[333888052,1722599446521,-500.0,0.00019178,2]
[333888053,1722599446530,-3008.42,0.00019178,2]
[333888054,1722599446540,-500.0,0.00019178,2]
[333888055,1722599446549,-500.0,0.00019178,2]
[333888056,1722599446559,-2478.83,0.00019178,2]
[333888057,1722599446568,-500.0,0.00019178,2]
[333888058,1722599446578,-500.0,0.00019178,2]
[333888059,1722599446587,-887.29,0.00019178,2]
[333888060,1722599446596,-500.0,0.00019178,2]
[333888061,1722599446606,-500.0,0.00019178,2]
[333888063,1722599446616,-500.0,0.00019178,2]
[333888065,1722599446625,-500.0,0.00019178,2]
[333888067,1722599446634,-1177.58,0.00019178,2]
[333888069,1722599446644,-500.0,0.00019178,2]
[333888071,1722599446653,-500.0,0.00019178,2]
[333888073,1722599446663,-500.0,0.00019178,2]
[333888075,1722599446672,-500.0,0.00019178,2]
[333888077,1722599446681,-2042.27,0.00019178,2]
[333888079,1722599446691,-500.0,0.00019178,2]
[333888081,1722599446700,-2711.92,0.00019178,2]
[333888083,1722599446711,-3978.25,0.00019178,2]
[333888085,1722599446720,-1099.32,0.00019178,2]
[333888087,1722599446733,-1294.24,0.00019178,2]
[333888089,1722599446743,-500.0,0.00019178,2]
[333888092,1722599446753,-613.87,0.00019178,2]
[333888093,1722599446763,-500.0,0.00019178,2]
[333888095,1722599446773,-2949.33,0.00019178,2]
[333888098,1722599446782,-2512.28,0.00019178,2]
[333888100,1722599446792,-3418.58,0.00019178,2]
[333888102,1722599446801,-500.0,0.00019178,2]
[333888103,1722599446811,-500.0,0.00019178,2]
[333888104,1722599446821,-1025.28,0.00019178,2]
[333888105,1722599446830,-1196.88,0.00019178,2]
[333888106,1722599446839,-1432.87,0.00019178,2]
[333888107,1722599446849,-882.45,0.00019178,2]
[333888108,1722599446858,-500.0,0.00019178,2]
[333888109,1722599446868,-1211.0,0.00019178,2]
[333888110,1722599446878,-1568.92,0.00019178,2]
[333888111,1722599446888,-500.0,0.00019178,2]
[333888113,1722599446898,-500.0,0.00019178,2]
[333888115,1722599446908,-1470.38,0.00019178,2]
[333888117,1722599446918,-1965.78,0.00019178,2]
[333888119,1722599446927,-3247.72,0.00019178,2]
[333888121,1722599446937,-500.0,0.00019178,2]
[333888123,1722599446948,-500.0,0.00019178,2]
[333888125,1722599446958,-500.0,0.00019178,2]
[333888127,1722599446968,-631.7,0.00019178,2]
[333888129,1722599446978,-1021.13,0.00019178,2]
[333888130,1722599446988,-3719.89,0.00019178,2]
[333888132,1722599446997,-504.05,0.00019178,2]
[333888134,1722599447007,-500.0,0.00019178,2]
[333888136,1722599447018,-500.0,0.00019178,2]
[333888138,1722599447028,-500.0,0.00019178,2]
[333888139,1722599447037,-751.87,0.00019178,2]
[333888140,1722599447047,-1894.65,0.00019178,2]
[333888141,1722599447056,-1371.13,0.00019178,2]
[333888142,1722599447066,-803.42,0.00019178,2]
[333888143,1722599447076,-1824.07,0.00019178,2]
[333888144,1722599447086,-500.0,0.00019178,2]
[333888145,1722599447095,-500.0,0.00019178,2]
[333888146,1722599447105,-500.0,0.00019178,2]
[333888148,1722599447115,-500.0,0.00019178,2]
[333888150,1722599447125,-500.0,0.00019178,2]
[333888152,1722599447136,-1392.57,0.00019178,2]
[333888154,1722599447151,-540.62,0.00019178,2]
[333888156,1722599447160,-500.0,0.00019178,2]
[333888158,1722599447170,-500.0,0.00019178,2]
[333888160,1722599447179,-3600.47,0.00019178,2]
[333888162,1722599447190,-1132.2,0.00019178,2]
[333888164,1722599447199,-2536.01,0.00019178,2]
[333888166,1722599447209,-500.0,0.00019178,2]
[333888168,1722599447219,-500.0,0.00019178,2]
[333888170,1722599447232,-584.5,0.00019178,2]
[333888172,1722599447243,-500.0,0.00019178,2]
[333888174,1722599447254,-500.0,0.00019178,2]
[333888176,1722599447264,-718.71,0.00019178,2]
[333888178,1722599447274,-2642.99,0.00019178,2]
[333888180,1722599447283,-934.07,0.00019178,2]
[333888183,1722599447292,-500.0,0.00019178,2]
[333888185,1722599447302,-500.0,0.00019178,2]
[333888187,1722599447312,-500.0,0.00019178,2]
[333888189,1722599447322,-1138.89,0.00019178,2]
[333888191,1722599447331,-1730.61,0.00019178,2]
[333888193,1722599447341,-500.0,0.00019178,2]
[333888195,1722599447351,-535.07490693,0.00019178,2]
[333888197,1722599447360,-645.88,0.00019178,2]
[333888199,1722599447369,-500.0,0.00019178,2]
[333888201,1722599447379,-3766.94,0.00019178,2]
[333888203,1722599447388,-666.77,0.00019178,2]
[333888205,1722599447397,-1699.88,0.00019178,2]
[333888207,1722599447407,-619.61,0.00019178,2]
[333888209,1722599447416,-994.93,0.00019178,2]
[333888211,1722599447426,-500.0,0.00019178,2]
[333888213,1722599447435,-1060.67,0.00019178,2]
[333888215,1722599447445,-4703.73,0.00019178,2]
[333888217,1722599447454,-500.0,0.00019178,2]
[333888219,1722599447464,-500.0,0.00019178,2]
[333888221,1722599447475,-500.0,0.00019178,2]
[333888223,1722599447485,-503.84,0.00019178,2]
[333888225,1722599447494,-1119.8,0.00019178,2]
[333888227,1722599447503,-500.0,0.00019178,2]
[333888229,1722599447513,-500.0,0.00019178,2]
[333888231,1722599447522,-1184.65,0.00019178,2]
[333888233,1722599447532,-500.0,0.00019178,2]
[333888235,1722599447542,-500.0,0.00019178,2]
[333888237,1722599447552,-1962.69,0.00019178,2]
[333888239,1722599447562,-2335.23,0.00019178,2]
[333888241,1722599447571,-3466.14,0.00019178,2]
[333888243,1722599447581,-500.0,0.00019178,2]
[333888245,1722599447591,-500.0,0.00019178,2]
[333888247,1722599447600,-500.0,0.00019178,2]
[333888249,1722599447609,-500.0,0.00019178,2]
[333888250,1722599447619,-2048.6,0.00019178,2]
[333888252,1722599447629,-500.0,0.00019178,2]
[333888254,1722599447639,-2033.28,0.00019178,2]
[333888256,1722599447649,-500.0,0.00019178,2]
[333888258,1722599447658,-533.97,0.00019178,2]
[333888260,1722599447668,-516.91,0.00019178,2]
[333888262,1722599447678,-1076.46,0.00019178,2]
[333888263,1722599447687,-500.0,0.00019178,2]
[333888265,1722599447696,-1569.51,0.00019178,2]
[333888267,1722599447706,-2181.52,0.00019178,2]
[333888269,1722599447716,-500.0,0.00019178,2]
[333888271,1722599447727,-500.0,0.00019178,2]
[333888273,1722599447737,-500.0,0.00019178,2]
[333888275,1722599447747,-500.0,0.00019178,2]
[333888277,1722599447758,-544.16,0.00019178,2]
[333888279,1722599447768,-536.61,0.00019178,2]
[333888281,1722599447778,-500.0,0.00019178,2]
[333888283,1722599447787,-500.0,0.00019178,2]
[333888285,1722599447798,-3397.52,0.00019178,2]
[333888287,1722599447808,-500.0,0.00019178,2]
[333888289,1722599447817,-500.0,0.00019178,2]
[333888291,1722599447828,-3007.61,0.00019178,2]
[333888293,1722599447838,-579.7,0.00019178,2]
[333888295,1722599447847,-1649.87,0.00019178,2]
[333888297,1722599447857,-500.0,0.00019178,2]
[333888299,1722599447866,-500.0,0.00019178,2]
[333888301,1722599447875,-615.07,0.00019178,2]
[333888303,1722599447885,-500.0,0.00019178,2]
[333888305,1722599447895,-500.0,0.00019178,2]
[333888307,1722599447905,-500.0,0.00019178,2]
[333888309,1722599447914,-500.0,0.00019178,2]
[333888311,1722599447924,-1486.53,0.00019178,2]
[333888313,1722599447934,-1896.65,0.00019178,2]
[333888315,1722599447944,-500.0,0.00019178,2]
[333888317,1722599447954,-796.4,0.00019178,2]
[333888319,1722599447964,-500.0,0.00019178,2]
[333888321,1722599447974,-500.0,0.00019178,2]
[333888323,1722599447984,-5350.3,0.00019178,2]
[333888325,1722599447994,-500.0,0.00019178,2]
[333888327,1722599448004,-3625.19,0.00019178,2]
[333888329,1722599448015,-601.99,0.00019178,2]
[333888331,1722599448025,-500.0,0.00019178,2]
[333888334,1722599448040,-579.72,0.00019178,2]
[333888336,1722599448050,-920.11,0.00019178,2]
[333888338,1722599448060,-756.31,0.00019178,2]
[333888340,1722599448070,-500.0,0.00019178,2]
[333888342,1722599448080,-500.0,0.00019178,2]
[333888344,1722599448090,-1469.88,0.00019178,2]
[333888346,1722599448099,-500.0,0.00019178,2]
[333888348,1722599448109,-2029.46,0.00019178,2]
[333888349,1722599448119,-500.0,0.00019178,2]
[333888351,1722599448129,-500.0,0.00019178,2]
[333888353,1722599448139,-1333.96,0.00019178,2]
[333888355,1722599448152,-856.97,0.00019178,2]
[333888358,1722599448163,-293.00587988,0.00019178,2]
[333888360,1722599448173,-3633.06,0.00019178,2]
[333888361,1722599448184,-1157.26,0.00019178,2]
[333888363,1722599448194,-500.0,0.00019178,2]
[333888365,1722599448204,-1661.14,0.00019178,2]
[333888367,1722599448215,-500.0,0.00019178,2]
[333888370,1722599448227,-500.0,0.00019178,2]
[333888372,1722599448237,-500.0,0.00019178,2]
[333888374,1722599448247,-500.0,0.00019178,2]
[333888376,1722599448257,-713.44,0.00019178,2]
[333888378,1722599448267,-1555.23,0.00019178,2]
[333888380,1722599448277,-500.0,0.00019178,2]
[333888382,1722599448287,-500.0,0.00019178,2]
[333888384,1722599448296,-1003.67,0.00019178,2]
[333888386,1722599448306,-235.1384951,0.00019178,2]
[333888388,1722599448316,-500.0,0.00019178,2]
[333888390,1722599448325,-510.21,0.00019178,2]
[333888392,1722599448336,-500.0,0.00019178,2]
[333888393,1722599448345,-500.0,0.00019178,2]
[333888396,1722599448355,-500.0,0.00019178,2]
[333888398,1722599448365,-500.0,0.00019178,2]
[333888399,1722599448375,-630.07,0.00019178,2]
[333888401,1722599448384,-732.54,0.00019178,2]
[333888403,1722599448394,-805.2,0.00019178,2]
[333888405,1722599448404,-4899.06,0.00019178,2]
[333888407,1722599448413,-1989.63,0.00019178,2]
[333888409,1722599448423,-997.32,0.00019178,2]
[333888411,1722599448433,-500.0,0.00019178,2]
[333888413,1722599448443,-753.76,0.00019178,2]
[333888415,1722599448453,-500.0,0.00019178,2]
[333888417,1722599448463,-500.0,0.00019178,2]
[333888419,1722599448472,-500.0,0.00019178,2]
[333888421,1722599448482,-886.0,0.00019178,2]
[333888423,1722599448492,-500.0,0.00019178,2]
[333888425,1722599448501,-500.0,0.00019178,2]
[333888427,1722599448511,-500.0,0.00019178,2]
[333888429,1722599448521,-500.0,0.00019178,2]
[333888432,1722599448543,-290.35660351,0.00019178,2]
[333888434,1722599448552,-500.0,0.00019178,2]
[333888436,1722599448562,-500.0,0.00019178,2]
[333888438,1722599448572,-640.74,0.00019178,2]
[333888440,1722599448582,-3161.9,0.00019178,2]
[333888442,1722599448592,-955.63,0.00019178,2]
[333888444,1722599448602,-3416.75,0.00019178,2]
[333888445,1722599448612,-1129.27,0.00019178,2]
[333888447,1722599448623,-520.27,0.00019178,2]
[333888450,1722599448633,-500.0,0.00019178,2]
[333888452,1722599448643,-726.43,0.00019178,2]
[333888454,1722599448654,-1129.31,0.00019178,2]
[333888456,1722599448664,-500.0,0.00019178,2]
[333888458,1722599448675,-500.0,0.00019178,2]
[333888460,1722599448685,-7892.61,0.00019178,2]
[333888462,1722599448695,-500.0,0.00019178,2]
[333888463,1722599448705,-500.0,0.00019178,2]
[333888464,1722599448716,-500.0,0.00019178,2]
[333888465,1722599448728,-500.0,0.00019178,2]
[333888466,1722599448738,-500.0,0.00019178,2]
[333888467,1722599448748,-881.88,0.00019178,2]
[333888468,1722599448758,-2142.04,0.00019178,2]
[333888469,1722599448769,-500.0,0.00019178,2]
[333888470,1722599448778,-500.0,0.00019178,2]
[333888472,1722599448788,-500.0,0.00019178,2]
[333888474,1722599448798,-500.0,0.00019178,2]
[333888476,1722599448808,-500.0,0.00019178,2]
[333888478,1722599448818,-500.0,0.00019178,2]
[333888480,1722599448828,-5139.52,0.00019178,2]
[333888483,1722599448842,-1490.37,0.00019178,2]
[333888485,1722599448852,-1672.16,0.00019178,2]
[333888487,1722599448862,-1901.33,0.00019178,2]
[333888489,1722599448872,-365.63061375,0.00019178,2]
[333888491,1722599448882,-753.7,0.00019178,2]
[333888493,1722599448892,-508.89,0.00019178,2]
[333888495,1722599448902,-1082.78,0.00019178,2]
[333888497,1722599448912,-660.42,0.00019178,2]
[333888499,1722599448921,-500.0,0.00019178,2]
[333888501,1722599448931,-500.0,0.00019178,2]
[333888503,1722599448941,-500.0,0.00019178,2]
[333888505,1722599448951,-866.98,0.00019178,2]
[333888507,1722599448960,-2283.53,0.00019178,2]
[333888509,1722599448970,-1581.09,0.00019178,2]
[333888511,1722599448981,-6787.91,0.00019178,2]
[333888513,1722599448991,-891.32,0.00019178,2]
[333888515,1722599449000,-732.61,0.00019178,2]
[333888517,1722599449011,-539.56,0.00019178,2]
[333888519,1722599449021,-7260.82,0.00019178,2]
[333888521,1722599449031,-879.55,0.00019178,2]
[333888523,1722599449040,-2919.2,0.00019178,2]
[333888525,1722599449051,-650.42,0.00019178,2]
[333888527,1722599449060,-6612.5,0.00019178,2]
[333888529,1722599449070,-77518.3,0.00019178,2]
[333888531,1722599449080,-500.0,0.00019178,2]
[333888533,1722599449090,-500.0,0.00019178,2]
[333888536,1722599449100,-2092.86,0.00019178,2]
[333888538,1722599449109,-559.94,0.00019178,2]
[333888540,1722599449119,-1951.02,0.00019178,2]
[333888542,1722599449128,-3027.07,0.00019178,2]
[333888544,1722599449138,-2422.39,0.00019178,2]
[333888546,1722599449152,-683.79,0.00019178,2]
[333888548,1722599449161,-5756.77,0.00019178,2]
[333888550,1722599449171,-500.0,0.00019178,2]
[333888552,1722599449180,-508.01,0.00019178,2]
[333888554,1722599449192,-912.05,0.00019178,2]
[333888556,1722599449202,-1659.85,0.00019178,2]
[333888558,1722599449211,-500.0,0.00019178,2]
[333888560,1722599449222,-26489.29,0.00019178,2]
[333888561,1722599449232,-500.0,0.00019178,2]
[333888562,1722599449242,-4822.94,0.00019178,2]
[333888563,1722599449251,-3129.44,0.00019178,2]
[333888564,1722599449260,-802.75,0.00019178,2]
[333888565,1722599449269,-500.0,0.00019178,2]
[333888566,1722599449279,-1470.81,0.00019178,2]
[333888567,1722599449288,-2706.39,0.00019178,2]
[333888568,1722599449298,-946.84,0.00019178,2]
[333888569,1722599449307,-3362.3,0.00019178,2]
[333888570,1722599449317,-1124.24,0.00019178,2]
[333888571,1722599449326,-1010.03,0.00019178,2]
[333888572,1722599449336,-500.0,0.00019178,2]
[333888573,1722599449345,-500.0,0.00019178,2]
[333888574,1722599449355,-551.15,0.00019178,2]
[333888575,1722599449364,-500.0,0.00019178,2]
[333888576,1722599449374,-500.0,0.00019178,2]
[333888577,1722599449383,-609.28,0.00019178,2]
[333888578,1722599449393,-779.95,0.00019178,2]
[333888579,1722599449402,-546.28,0.00019178,2]
[333888580,1722599449411,-2990.22,0.00019178,2]
[333888581,1722599449421,-500.0,0.00019178,2]
[333888582,1722599449430,-5077.72,0.00019178,2]
[333888584,1722599449439,-3972.95,0.00019178,2]
[333888586,1722599449449,-500.0,0.00019178,2]
[333888588,1722599449459,-500.0,0.00019178,2]
[333888590,1722599449468,-1811.69,0.00019178,2]
[333888592,1722599449479,-500.0,0.00019178,2]
[333888594,1722599449489,-500.0,0.00019178,2]
[333888596,1722599449498,-630.39,0.00019178,2]
[333888598,1722599449508,-500.0,0.00019178,2]
[333888600,1722599449518,-15784.92,0.00019178,2]
[333888602,1722599449527,-1458.09,0.00019178,2]
[333888604,1722599449537,-568.96,0.00019178,2]
[333888606,1722599449546,-500.0,0.00019178,2]
[333888608,1722599449556,-479.26989465,0.00019178,2]
[333888610,1722599449565,-3472.41,0.00019178,2]
[333888612,1722599449575,-2355.25,0.00019178,2]
[333888614,1722599449584,-500.0,0.00019178,2]
[333888616,1722599449594,-500.0,0.00019178,2]
[333888618,1722599449603,-544.84,0.00019178,2]
[333888620,1722599449612,-500.0,0.00019178,2]
[333888622,1722599449622,-6157.26,0.00019178,2]
[333888624,1722599449632,-522.4,0.00019178,2]
[333888626,1722599449641,-3086.3,0.00019178,2]
[333888628,1722599449651,-4124.12,0.00019178,2]
[333888630,1722599449660,-500.0,0.00019178,2]
[333888632,1722599449670,-500.0,0.00019178,2]
[333888634,1722599449680,-1398.41,0.00019178,2]
[333888636,1722599449689,-3912.37,0.00019178,2]
[333888638,1722599449699,-500.0,0.00019178,2]
[333888640,1722599449708,-500.0,0.00019178,2]
[333888642,1722599449718,-1178.29,0.00019178,2]
[333888644,1722599449730,-18864.32,0.00019178,2]
[333888646,1722599449740,-1468.69,0.00019178,2]
[333888648,1722599449750,-2451.15,0.00019178,2]
[333888650,1722599449759,-1397.91,0.00019178,2]
[333888652,1722599449769,-500.0,0.00019178,2]
[333888655,1722599449778,-500.0,0.00019178,2]
[333888657,1722599449788,-2307.85,0.00019178,2]
[333888659,1722599449797,-500.0,0.00019178,2]
[333888661,1722599449807,-3348.64,0.00019178,2]
[333888663,1722599449817,-554.09,0.00019178,2]
[333888665,1722599449826,-925.55,0.00019178,2]
[333888667,1722599449835,-2323.62,0.00019178,2]
[333888669,1722599449845,-1009.74,0.00019178,2]
[333888671,1722599449855,-500.0,0.00019178,2]
[333888673,1722599449864,-582.42689544,0.00019178,2]
[333888674,1722599449873,-1374.77,0.00019178,2]
[333888676,1722599449883,-12586.94,0.00019178,2]
[333888678,1722599449892,-500.0,0.00019178,2]
[333888680,1722599449901,-6366.46,0.00019178,2]
[333888682,1722599449911,-3894.88,0.00019178,2]
[333888684,1722599449920,-589.94,0.00019178,2]
[333888686,1722599449930,-26048.81,0.00019178,2]
[333888688,1722599449939,-500.0,0.00019178,2]
[333888690,1722599449949,-7538.09,0.00019178,2]
[333888692,1722599449958,-1647.7,0.00019178,2]
[333888694,1722599449968,-786.08,0.00019178,2]
[333888696,1722599449980,-500.0,0.00019178,2]
[333888698,1722599449990,-3558.94,0.00019178,2]
[333888700,1722599449999,-823.01,0.00019178,2]
[333888702,1722599450011,-2181.42,0.00019178,2]
[333888704,1722599450020,-500.0,0.00019178,2]
[333888706,1722599450030,-1160.33,0.00019178,2]
[333888709,1722599450039,-500.0,0.00019178,2]
[333888711,1722599450048,-500.0,0.00019178,2]
[333888713,1722599450058,-6851.6,0.00019178,2]
[333888715,1722599450070,-2949.08,0.00019178,2]
[333888717,1722599450079,-1528.83,0.00019178,2]
[333888719,1722599450089,-500.0,0.00019178,2]
[333888721,1722599450098,-500.0,0.00019178,2]
[333888723,1722599450108,-38110.31,0.00019178,2]
[333888725,1722599450117,-1181.39,0.00019178,2]
[333888727,1722599450126,-6755.45,0.00019178,2]
[333888729,1722599450135,-4018.16,0.00019178,2]
[333888731,1722599450146,-500.0,0.00019178,2]
[333888733,1722599450156,-804.66,0.00019178,2]
[333888735,1722599450165,-628.58,0.00019178,2]
[333888736,1722599450175,-1146.0,0.00019178,2]
[333888738,1722599450184,-2373.95,0.00019178,2]
[333888740,1722599450194,-1608.07,0.00019178,2]
[333888742,1722599450203,-6718.38,0.00019178,2]
[333888744,1722599450212,-500.0,0.00019178,2]
[333888746,1722599450222,-500.0,0.00019178,2]
[333888748,1722599450234,-500.0,0.00019178,2]
[333888750,1722599450243,-583.79,0.00019178,2]
[333888752,1722599450253,-500.0,0.00019178,2]
[333888754,1722599450262,-504.66261114,0.00019178,2]
[333888756,1722599450271,-3033.27,0.00019178,2]
[333888758,1722599450280,-12772.1,0.00019178,2]
[333888760,1722599450290,-500.0,0.00019178,2]
[333888762,1722599450300,-1289.96,0.00019178,2]
[333888764,1722599450309,-500.0,0.00019178,2]
[333888766,1722599450318,-1715.01,0.00019178,2]
[333888768,1722599450327,-12673.15,0.00019178,2]
[333888770,1722599450336,-500.0,0.00019178,2]
[333888772,1722599450346,-500.0,0.00019178,2]
[333888774,1722599450355,-500.0,0.00019178,2]
[333888777,1722599450369,-1160.74,0.00019178,2]
[333888779,1722599450379,-500.0,0.00019178,2]
[333888780,1722599450389,-500.0,0.00019178,2]
[333888783,1722599450399,-625.48,0.00019178,2]
[333888785,1722599450409,-500.0,0.00019178,2]
[333888786,1722599450418,-593.13,0.00019178,2]
[333888788,1722599450427,-10588.92,0.00019178,2]
[333888790,1722599450437,-500.0,0.00019178,2]
[333888792,1722599450446,-875.47,0.00019178,2]
[333888794,1722599450455,-2157.4,0.00019178,2]
[333888796,1722599450465,-590.03,0.00019178,2]
[333888798,1722599450475,-500.0,0.00019178,2]
[333888800,1722599450485,-2709.49,0.00019178,2]
[333888802,1722599450498,-500.0,0.00019178,2]
[333888804,1722599450507,-500.0,0.00019178,2]
[333888806,1722599450516,-2968.5,0.00019178,2]
[333888808,1722599450526,-5633.03,0.00019178,2]
[333888810,1722599450535,-3534.12,0.00019178,2]
[333888812,1722599450545,-1497.02,0.00019178,2]
[333888814,1722599450554,-500.0,0.00019178,2]
[333888816,1722599450564,-2423.62,0.00019178,2]
[333888818,1722599450573,-500.0,0.00019178,2]
[333888820,1722599450582,-500.0,0.00019178,2]
[333888821,1722599450591,-11746.92,0.00019178,2]
[333888822,1722599450601,-1141.94,0.00019178,2]
[333888823,1722599450611,-989.22,0.00019178,2]
[333888824,1722599450621,-500.0,0.00019178,2]
[333888825,1722599450630,-500.0,0.00019178,2]
[333888826,1722599450640,-500.0,0.00019178,2]
[333888827,1722599450650,-923.5,0.00019178,2]
[333888828,1722599450659,-2399.6,0.00019178,2]
[333888830,1722599450669,-500.0,0.00019178,2]
[333888832,1722599450678,-2675.85,0.00019178,2]
[333888834,1722599450688,-500.0,0.00019178,2]
[333888836,1722599450698,-777.3,0.00019178,2]
[333888838,1722599450707,-4343.41,0.00019178,2]
[333888840,1722599450717,-500.0,0.00019178,2]
[333888843,1722599450731,-500.0,0.00019178,2]
[333888845,1722599450744,-581.66,0.00019178,2]
[333888847,1722599450757,-3807.14,0.00019178,2]
[333888849,1722599450770,-500.0,0.00019178,2]
[333888852,1722599450782,-1938.54,0.00019178,2]
[333888854,1722599450792,-1824.19,0.00019178,2]
[333888856,1722599450804,-3151.12,0.00019178,2]
[333888858,1722599450816,-1407.88,0.00019178,2]
[333888860,1722599450828,-6615.38,0.00019178,2]
[333888863,1722599450841,-500.0,0.00019178,2]
[333888865,1722599450854,-3154.78,0.00019178,2]
[333888867,1722599450866,-500.0,0.00019178,2]
[333888870,1722599450878,-2632.77,0.00019178,2]
[333888872,1722599450891,-4545.43,0.00019178,2]
[333888874,1722599450904,-1520.3,0.00019178,2]
[333888876,1722599450917,-556.74913532,0.00019178,2]
[333888879,1722599450929,-1235.21,0.00019178,2]
[333888881,1722599450941,-9719.62,0.00019178,2]
[333888883,1722599450953,-500.0,0.00019178,2]
[333888885,1722599450965,-500.0,0.00019178,2]
[333888888,1722599450977,-679.04,0.00019178,2]
[333888890,1722599450990,-886.92,0.00019178,2]
[333888892,1722599451002,-2801.61,0.00019178,2]
[333888894,1722599451015,-500.0,0.00019178,2]
[333888897,1722599451026,-2191.12,0.00019178,2]
[333888899,1722599451036,-2191.12,0.00019178,2]
[333888901,1722599451048,-500.0,0.00019178,2]
[333888903,1722599451059,-2191.12,0.00019178,2]
[333888905,1722599451072,-5803.48,0.00019178,2]
[333888908,1722599451085,-2191.12,0.00019178,2]
[333888910,1722599451098,-500.0,0.00019178,2]
[333888912,1722599451111,-500.0,0.00019178,2]
[333888915,1722599451126,-552.388972,0.00019178,2]
[333888917,1722599451140,-2191.12,0.00019178,2]
[333888919,1722599451155,-2191.12,0.00019178,2]
[333888921,1722599451167,-2191.12,0.00019178,2]
[333888923,1722599451177,-2191.12,0.00019178,2]
[333888925,1722599451190,-2242.39,0.00019178,2]
[333888927,1722599451202,-1148.91,0.00019178,2]
[333888930,1722599451213,-500.0,0.00019178,2]
[333888932,1722599451231,-4107.31,0.00019178,2]